fUSD/lending_fUSD_20250818
["ID","MTS","AMOUNT","RATE_DAILY","PERIOD"]
[380074341,1755530474338,-400.0,0.0003041,120]
[380074342,1755530474370,-400.0,0.0003041,120]
[380074343,1755530474402,-568.31,0.0003041,120]
[380074344,1755530474438,-400.0,0.0003041,120]
[380074345,1755530474467,-413.9686869,0.0003041,120]
[380074346,1755530474495,-2430.51,0.0003041,120]
[380074347,1755530474524,-400.0,0.0003041,120]
[380074348,1755530474552,-823.62,0.0003041,120]
[380074349,1755530474581,-400.0,0.0003041,120]
[380074350,1755530474609,-2528.53,0.0003041,120]
[380074351,1755530474638,-400.0,0.0003041,120]
[380074352,1755530474666,-2101.44,0.0003041,120]
[380074353,1755530474693,-1237.59,0.0003041,120]
[380074354,1755530475173,-3256.29,0.0003041,120]
[380074355,1755530475203,-5378.25,0.0003041,120]
[380074356,1755530475233,-4258.75,0.0003041,120]
[380074357,1755530475262,-4171.03,0.0003041,120]
[380074358,1755530475290,-400.0,0.0003041,120]
[380074359,1755530475317,-400.0,0.0003041,120]
[380074360,1755530475347,-1455.04,0.0003041,120]
[380074361,1755530475376,-486.15,0.0003041,120]
[380074362,1755530475413,-1063.03,0.0003041,120]
[380074363,1755530475445,-949.53,0.0003041,120]
[380074364,1755530475474,-400.0,0.0003041,120]
[380074365,1755530475506,-400.0,0.0003041,120]
[380074366,1755530475534,-400.0,0.0003041,120]
[380074367,1755530475562,-400.0,0.0003041,120]
[380074368,1755530475591,-708.82,0.0003041,120]
[380074369,1755530475620,-405.46,0.0003041,120]
[380074370,1755530475649,-3738.01,0.0003041,120]
[380074371,1755530475677,-1211.33,0.0003041,120]
[380074372,1755530475705,-400.0,0.0003041,120]
[380074373,1755530475735,-400.0,0.0003041,120]
[380074374,1755530475763,-400.0,0.0003041,120]
[380074375,1755530475792,-1972.59,0.0003041,120]
[380074376,1755530475822,-637.67,0.0003041,120]
[380074377,1755530475850,-1837.51,0.0003041,120]
[380074378,1755530475877,-400.0,0.0003041,120]
[380074379,1755530475905,-400.0,0.0003041,120]
[380074380,1755530475933,-3289.84,0.0003041,120]
[380074381,1755530475966,-630.68,0.0003041,120]
[380074382,1755530476002,-400.0,0.0003041,120]
[380074383,1755530476034,-1107.44,0.0003041,120]
[380074384,1755530476067,-3815.98,0.0003041,120]
[380074385,1755530476097,-400.0,0.0003041,120]
[380074386,1755530476127,-660.45,0.0003041,120]
[380074387,1755530476159,-436.23,0.0003041,120]
[380074388,1755530476194,-1547.76,0.0003041,120]
[380074389,1755530476232,-9639.16,0.0003041,120]
[380074390,1755530476266,-400.0,0.0003041,120]
[380074391,1755530476297,-5793.38,0.0003041,120]
[380074392,1755530476329,-4043.59,0.0003041,120]
[380074393,1755530476359,-400.0,0.0003041,120]
[380074394,1755530476388,-1752.67,0.0003041,120]
[380074395,1755530476417,-400.0,0.0003041,120]
[380074396,1755530476449,-400.0,0.0003041,120]
[380074397,1755530476482,-407.28403843,0.0003041,120]
[380074398,1755530476513,-400.0,0.0003041,120]
[380074399,1755530476543,-1327.39,0.0003041,120]
[380074400,1755530476574,-400.0,0.0003041,120]
[380074401,1755530476614,-677.66,0.0003041,120]
[380074402,1755530476645,-22643.06,0.0003041,118]
[380074403,1755530476675,-1848.94,0.0003041,120]
[380074404,1755530476706,-400.0,0.0003041,120]
[380074405,1755530476736,-738.48,0.0003041,120]
[380074406,1755530476766,-5872.85,0.0003041,120]
[380074407,1755530476795,-3125.65,0.0003041,120]
[380074408,1755530476827,-2151.43,0.0003041,120]
[380074409,1755530476859,-400.0,0.0003041,120]
[380074410,1755530476890,-505.71,0.0003041,120]
[380074411,1755530476921,-4295.29,0.0003041,120]
[380074412,1755530476954,-822.9,0.0003041,120]
[380074413,1755530476987,-2487.26,0.0003041,120]
[380074414,1755530477018,-400.0,0.0003041,120]
[380074415,1755530477048,-400.0,0.0003041,120]
[380074416,1755530477080,-400.0,0.0003041,120]
[380074417,1755530477112,-3433.01,0.0003041,120]
[380074418,1755530477145,-5478.81,0.0003041,120]
[380074419,1755530477175,-749.96,0.0003041,120]
[380074420,1755530477208,-1008.73,0.0003041,120]
[380074421,1755530477240,-401.46950048,0.0003041,120]
[380074422,1755530477270,-521.33668637,0.0003041,120]
[380074423,1755530477301,-400.0,0.0003041,120]
[380074424,1755530477332,-400.0,0.0003041,120]
[380074425,1755530477363,-3734.38,0.0003041,120]
[380074426,1755530477393,-4114.25,0.0003041,120]
[380074427,1755530477425,-4851.35,0.0003041,120]
[380074428,1755530477456,-4619.28,0.0003041,120]
[380074429,1755530477489,-3817.79,0.0003041,120]
[380074430,1755530477519,-2011.1,0.0003041,120]
[380074431,1755530477548,-400.0,0.0003041,120]
[380074432,1755530477578,-400.0,0.0003041,120]
[380074433,1755530477607,-400.0,0.0003041,120]
[380074434,1755530477636,-466.54,0.0003041,120]
[380074435,1755530477665,-416.31859571,0.0003041,120]
[380074436,1755530477695,-2749.8,0.0003041,120]
[380074437,1755530477726,-400.0,0.0003041,120]
[380074438,1755530477756,-1316.92,0.0003041,120]
[380074439,1755530477786,-400.0,0.0003041,120]
[380074440,1755530477815,-10429.26,0.0003041,120]
[380074441,1755530477846,-1086.51,0.0003041,120]
[380074442,1755530477875,-523.07,0.0003041,120]
[380074443,1755530477904,-470.7,0.0003041,120]
[380074444,1755530477933,-2226.74,0.0003041,120]
[380074445,1755530477966,-6209.87,0.0003041,120]
[380074446,1755530477997,-400.0,0.0003041,120]
[380074447,1755530478027,-3296.08,0.0003041,120]
[380074448,1755530478058,-2399.29,0.0003041,120]
[380074449,1755530478090,-4171.64,0.0003041,120]
[380074450,1755530478120,-4755.06,0.0003041,120]
[380074451,1755530478155,-13246.8,0.0003041,120]
[380074452,1755530478185,-400.0,0.0003041,120]
[380074453,1755530478216,-1857.5,0.0003041,120]
[380074454,1755530478247,-1050.24,0.0003041,120]
[380074455,1755530478278,-400.0,0.0003041,120]
[380074456,1755530478308,-250.0,0.0003041,120]
[380074457,1755530478338,-1589.52,0.0003041,120]
[380074458,1755530478368,-400.0,0.0003041,120]
[380074459,1755530478401,-15797.78,0.0003041,120]
[380074460,1755530478429,-400.0,0.0003041,120]
[380074461,1755530478459,-3287.4,0.0003041,120]
[380074462,1755530478488,-441.93,0.0003041,120]
[380074463,1755530478518,-3530.11,0.0003041,120]
[380074464,1755530478552,-4248.94,0.0003041,120]
[380074465,1755530478649,-4019.15,0.0003041,120]
[380074466,1755530478687,-400.0,0.0003041,120]
[380074467,1755530478722,-400.0,0.0003041,120]
[380074468,1755530478757,-441.48,0.0003041,120]
[380074469,1755530479163,-400.0,0.0003041,120]
[380074470,1755530479196,-581.26,0.0003041,120]
[380074471,1755530479232,-1174.66,0.0003041,120]
[380074472,1755530479265,-1222.63,0.0003041,120]
[380074473,1755530479297,-4233.93,0.0003041,120]
[380074474,1755530479328,-3044.6,0.0003041,120]
[380074475,1755530479360,-400.0,0.0003041,120]
[380074476,1755530479391,-400.0,0.0003041,120]
[380074477,1755530479423,-400.0,0.0003041,120]
[380074478,1755530479453,-878.34,0.0003041,120]
[380074479,1755530479484,-4058.28,0.0003041,120]
[380074480,1755530479516,-6991.51,0.0003041,120]
[380074481,1755530479546,-4264.2,0.0003041,120]
[380074482,1755530479575,-400.0,0.0003041,120]
[380074483,1755530479603,-4387.03,0.0003041,120]
[380074484,1755530479632,-3947.93,0.0003041,120]
[380074485,1755530479662,-2677.06,0.0003041,120]
[380074486,1755530479691,-400.0,0.0003041,120]
[380074487,1755530479720,-401.47664098,0.0003041,120]
[380074488,1755530479749,-1026.28,0.0003041,120]
[380074489,1755530479778,-2853.86,0.0003041,120]
[380074490,1755530479807,-794.64,0.0003041,120]
[380074491,1755530479835,-681.68,0.0003041,120]
[380074492,1755530479864,-400.0,0.0003041,120]
[380074493,1755530479894,-2411.65,0.0003041,120]
[380074494,1755530479923,-713.78,0.0003041,120]
[380074495,1755530479954,-515.02,0.0003041,120]
[380074496,1755530479987,-400.0,0.0003041,120]
[380074497,1755530480016,-1331.35,0.0003041,120]
[380074498,1755530480045,-3758.04,0.0003041,120]
[380074499,1755530480076,-4803.63,0.0003041,120]
[380074500,1755530480107,-4574.86,0.0003041,120]
[380074501,1755530480140,-863.85,0.0003041,120]
[380074502,1755530480171,-400.0,0.0003041,120]
[380074503,1755530480205,-2839.46,0.0003041,120]
[380074504,1755530480237,-400.0,0.0003041,120]
[380074505,1755530480268,-400.0,0.0003041,120]
[380074506,1755530480299,-710.9,0.0003041,120]
[380074507,1755530480330,-400.0,0.0003041,120]
[380074508,1755530480361,-400.0,0.0003041,120]
[380074509,1755530480392,-879.25,0.0003041,120]
[380074510,1755530480422,-1455.1,0.0003041,120]
[380074511,1755530480452,-400.0,0.0003041,120]
[380074512,1755530480483,-1637.48,0.0003041,120]
[380074513,1755530480515,-2161.16,0.0003041,120]
[380074514,1755530480543,-400.0,0.0003041,120]
[380074515,1755530480571,-400.0,0.0003041,120]
[380074516,1755530480600,-948.85,0.0003041,120]
[380074517,1755530480629,-13352.82,0.0003041,120]
[380074518,1755530480657,-400.0,0.0003041,120]
[380074519,1755530480684,-400.0,0.0003041,120]
[380074520,1755530480712,-400.0,0.0003041,120]
[380074521,1755530480740,-1396.57,0.0003041,120]
[380074522,1755530480773,-3491.63,0.0003041,120]
[380074523,1755530480803,-10987.01,0.0003041,120]
[380074524,1755530480830,-937.73,0.0003041,120]
[380074525,1755530480858,-400.0,0.0003041,120]
[380074526,1755530480888,-3563.75,0.0003041,120]
[380074527,1755530480916,-400.0,0.0003041,120]
[380074528,1755530480945,-400.0,0.0003041,120]
[380074529,1755530480978,-4265.13,0.0003041,120]
[380074530,1755530481009,-400.0,0.0003041,120]
[380074531,1755530481038,-400.0,0.0003041,120]
[380074532,1755530481068,-400.0,0.0003041,120]
[380074533,1755530481096,-837.87,0.0003041,120]
[380074534,1755530481127,-6918.08,0.0003041,120]
[380074535,1755530481158,-716.13,0.0003041,120]
[380074536,1755530481189,-11724.11,0.0003041,120]
[380074537,1755530481219,-2361.53,0.0003041,120]
[380074538,1755530481247,-586.6,0.0003041,120]
[380074539,1755530481277,-400.0,0.0003041,120]
[380074540,1755530481306,-1174.89,0.0003041,120]
[380074541,1755530481335,-400.0,0.0003041,120]
[380074542,1755530481364,-2125.43,0.0003041,120]
[380074543,1755530481392,-400.0,0.0003041,120]
[380074544,1755530481420,-400.0,0.0003041,120]
[380074545,1755530481448,-400.0,0.0003041,120]
[380074546,1755530481477,-4779.53,0.0003041,120]
[380074547,1755530481504,-400.0,0.0003041,120]
[380074548,1755530481532,-9896.79,0.0003041,120]
[380074549,1755530481560,-668.7,0.0003041,120]
[380074550,1755530481588,-402.87728034,0.0003041,120]
[380074551,1755530481616,-400.0,0.0003041,120]
[380074552,1755530481645,-536.28,0.0003041,120]
[380074553,1755530481673,-4819.83,0.0003041,120]
[380074554,1755530481701,-699.98,0.0003041,120]
[380074555,1755530481729,-400.0,0.0003041,120]
[380074556,1755530481757,-400.0,0.0003041,120]
[380074557,1755530481785,-622.7,0.0003041,120]
[380074558,1755530481813,-3340.81,0.0003041,120]
[380074559,1755530481841,-1175.88,0.0003041,120]
[380074560,1755530481869,-769.54,0.0003041,120]
[380074561,1755530481898,-8251.64,0.0003041,120]
[380074562,1755530481925,-2240.4,0.0003041,120]
[380074563,1755530481955,-400.0,0.0003041,120]
[380074564,1755530481990,-562.66,0.0003041,120]
[380074565,1755530482022,-765.16,0.0003041,120]
[380074566,1755530482056,-400.0,0.0003041,120]
[380074567,1755530482085,-7304.17,0.0003041,120]
[380074568,1755530482115,-400.0,0.0003041,120]
[380074569,1755530482144,-400.0,0.0003041,120]
[380074570,1755530482173,-2162.53,0.0003041,120]
[380074571,1755530482203,-400.0,0.0003041,120]
[380074572,1755530482234,-476.82,0.0003041,120]
[380074573,1755530482264,-3286.62,0.0003041,120]
[380074574,1755530482293,-943.02,0.0003041,120]
[380074575,1755530482321,-3570.46,0.0003041,120]
[380074576,1755530482349,-977.93,0.0003041,120]
[380074577,1755530482378,-3926.15,0.0003041,120]
[380074578,1755530482407,-400.0,0.0003041,120]
[380074579,1755530482435,-979.97,0.0003041,120]
[380074580,1755530482462,-7072.26,0.0003041,120]
[380074581,1755530482489,-401.05728455,0.0003041,120]
[380074582,1755530482517,-682.85,0.0003041,120]
[380074583,1755530482545,-602.42,0.0003041,120]
[380074584,1755530482843,-400.0,0.0003041,120]
[380074585,1755530482872,-12476.2,0.0003041,120]
[380074586,1755530482900,-400.0,0.0003041,120]
[380074587,1755530482927,-6828.97,0.0003041,120]
[380074588,1755530482959,-25611.61,0.0003041,120]
[380074589,1755530482992,-400.0,0.0003041,120]
[380074590,1755530483023,-3853.83,0.0003041,120]
[380074591,1755530483053,-4051.68,0.0003041,120]
[380074592,1755530483083,-400.0,0.0003041,120]
[380074593,1755530483113,-4027.28,0.0003041,120]
[380074594,1755530483142,-6531.6,0.0003041,120]
[380074595,1755530483171,-400.0,0.0003041,120]
[380074596,1755530483200,-4222.27,0.0003041,120]
[380074597,1755530483229,-688.66,0.0003041,120]
[380074598,1755530483257,-400.0,0.0003041,120]
[380074599,1755530483286,-2237.74,0.0003041,120]
[380074600,1755530483316,-583.33,0.0003041,120]
[380074601,1755530483349,-2133.26,0.0003041,120]
[380074602,1755530483381,-572.92,0.0003041,120]
[380074603,1755530483413,-3365.34,0.0003041,120]
[380074604,1755530483443,-400.0,0.0003041,120]
[380074605,1755530483473,-736.93,0.0003041,120]
[380074606,1755530483503,-2214.42,0.0003041,120]
[380074607,1755530483535,-1041.14,0.0003041,120]
[380074608,1755530483565,-4597.27,0.0003041,120]
[380074609,1755530483592,-400.0,0.0003041,120]
[380074610,1755530483624,-400.0,0.0003041,120]
[380074611,1755530483653,-1206.11,0.0003041,120]
[380074612,1755530483681,-400.0,0.0003041,120]
[380074613,1755530483710,-400.0,0.0003041,120]
[380074614,1755530483740,-290.41559293,0.0003041,120]
[380074615,1755530483770,-951.84,0.0003041,120]
[380074616,1755530483802,-532.23,0.0003041,120]
[380074617,1755530483833,-850.31,0.0003041,120]
[380074618,1755530483864,-400.0,0.0003041,120]
[380074619,1755530483894,-400.0,0.0003041,120]
[380074620,1755530483923,-400.0,0.0003041,120]
[380074621,1755530483952,-1386.95,0.0003041,120]
[380074622,1755530483986,-400.0,0.0003041,120]
[380074623,1755530484017,-400.0,0.0003041,120]
[380074624,1755530484048,-407.05182595,0.0003041,120]
[380074625,1755530484081,-400.0,0.0003041,120]
[380074626,1755530484113,-5799.8,0.0003041,120]
[380074627,1755530484261,-2825.13,0.0003041,120]
[380074628,1755530484294,-8707.38,0.0003041,120]
[380074629,1755530484325,-7958.9,0.0003041,120]
[380074630,1755530484355,-3783.0,0.0003041,120]
[380074631,1755530484386,-557.75,0.0003041,120]
[380074632,1755530484416,-400.0,0.0003041,120]
[380074633,1755530484446,-400.0,0.0003041,120]
[380074634,1755530484476,-6398.81,0.0003041,120]
[380074635,1755530484505,-400.0,0.0003041,120]
[380074636,1755530484534,-3371.15,0.0003041,120]
[380074637,1755530484564,-400.0,0.0003041,120]
[380074638,1755530484595,-3888.15,0.0003041,120]
[380074639,1755530484625,-404.11603633,0.0003041,120]
[380074640,1755530484653,-400.0,0.0003041,120]
[380074641,1755530484682,-400.0,0.0003041,120]
[380074642,1755530484713,-400.0,0.0003041,120]
[380074643,1755530484743,-3129.96,0.0003041,120]
[380074644,1755530484773,-1608.27,0.0003041,120]
[380074645,1755530484801,-318.85,0.0003041,120]
[380074646,1755530484831,-3440.58,0.0003041,120]
[380074647,1755530484862,-842.91,0.0003041,120]
[380074648,1755530484891,-400.0,0.0003041,120]
[380074649,1755530484924,-772.97,0.0003041,120]
[380074650,1755530484954,-400.0,0.0003041,120]
[380074651,1755530485003,-933.76,0.0003041,120]
[380074652,1755530485048,-1818.52,0.0003041,120]
[380074653,1755530485079,-400.78336582,0.0003041,120]
[380074654,1755530485108,-1460.63,0.0003041,120]
[380074655,1755530485141,-400.0,0.0003041,120]
[380074656,1755530485172,-440.24,0.0003041,120]
[380074657,1755530485201,-400.0,0.0003041,120]
[380074658,1755530485233,-400.0,0.0003041,120]
[380074659,1755530485263,-400.0,0.0003041,120]
[380074660,1755530485294,-1859.12,0.0003041,120]
[380074661,1755530485324,-435.34,0.0003041,120]
[380074662,1755530485354,-7670.34,0.0003041,120]
[380074663,1755530485384,-400.0,0.0003041,120]
[380074664,1755530485415,-7194.41,0.0003041,120]
[380074665,1755530485443,-896.15,0.0003041,120]
[380074666,1755530485471,-6295.49,0.0003041,120]
[380074667,1755530485500,-400.0,0.0003041,120]
[380074668,1755530485530,-1000.0,0.0003041,120]
[380074669,1755530485559,-1710.9,0.0003041,120]
[380074670,1755530485586,-715.64,0.0003041,120]
[380074671,1755530485614,-2051.18,0.0003041,120]
[380074672,1755530485643,-1905.69,0.0003041,120]
[380074673,1755530485671,-768.13,0.0003041,120]
[380074674,1755530485699,-2056.86,0.0003041,120]
[380074675,1755530485729,-400.0,0.0003041,120]
[380074676,1755530485757,-4491.83,0.0003041,120]
[380074677,1755530485786,-13074.68,0.0003041,120]
[380074678,1755530485814,-400.0,0.0003041,120]
[380074679,1755530485842,-400.0,0.0003041,120]
[380074680,1755530485869,-1789.48,0.0003041,120]
[380074681,1755530485897,-713.02,0.0003041,120]
[380074682,1755530485924,-793.84,0.0003041,120]
[380074683,1755530485951,-2179.75,0.0003041,120]
[380074684,1755530485985,-5534.4,0.0003041,120]
[380074685,1755530486015,-4758.19,0.0003041,120]
[380074686,1755530486045,-2414.14,0.0003041,120]
[380074687,1755530486074,-400.0,0.0003041,120]
[380074688,1755530486104,-400.0,0.0003041,120]
[380074689,1755530486136,-4495.88,0.0003041,120]
[380074690,1755530486166,-1123.53,0.0003041,120]
[380074691,1755530486195,-4049.69,0.0003041,120]
[380074692,1755530486225,-6056.38,0.0003041,120]
[380074693,1755530486253,-400.0,0.0003041,120]
[380074694,1755530486282,-644.17,0.0003041,120]
[380074695,1755530486312,-6804.78,0.0003041,120]
[380074696,1755530486341,-880.82,0.0003041,120]
[380074697,1755530486372,-817.04,0.0003041,120]
[380074698,1755530486665,-4117.32,0.0003041,120]
[380074699,1755530486695,-4000.94,0.0003041,120]
[380074700,1755530486725,-489.06597072,0.0003041,120]
[380074701,1755530486752,-400.0,0.0003041,120]
[380074702,1755530486781,-193.99011833,0.0003041,120]
[380074703,1755530486809,-1250.99,0.0003041,120]
[380074704,1755530486837,-1793.02,0.0003041,120]
[380074705,1755530486865,-400.0,0.0003041,120]
[380074706,1755530486895,-1330.32,0.0003041,120]
[380074707,1755530486925,-3213.477258,0.0003041,120]
[380074708,1755530486955,-400.0,0.0003041,120]
[380074709,1755530486994,-8058.83,0.0003041,120]
[380074710,1755530487024,-400.0,0.0003041,120]
[380074711,1755530487053,-400.0,0.0003041,120]
[380074712,1755530487082,-400.0,0.0003041,120]
[380074713,1755530487110,-979.28,0.0003041,120]
[380074714,1755530487141,-947.19,0.0003041,120]
[380074715,1755530487171,-3637.56,0.0003041,120]
[380074716,1755530487209,-3623.734768,0.0003041,120]
[380074717,1755530487240,-400.0,0.0003041,120]
[380074718,1755530487269,-400.0,0.0003041,120]
[380074719,1755530487298,-400.0,0.0003041,120]
[380074720,1755530487327,-270.92695987,0.0003041,120]
[380074721,1755530487356,-400.0,0.0003041,120]
[380074722,1755530487385,-3130.21,0.0003041,120]
[380074723,1755530487415,-815.78,0.0003041,120]
[380074724,1755530487444,-407.43837107,0.0003041,120]
[380074725,1755530487473,-1553.92,0.0003041,120]
[380074726,1755530487501,-2721.33,0.0003041,120]
[380074727,1755530487529,-400.0,0.0003041,120]
[380074728,1755530487556,-1629.01,0.0003041,120]
[380074729,1755530487585,-641.52,0.0003041,120]
[380074730,1755530487613,-7072.9,0.0003041,120]
[380074731,1755530487641,-1088.76,0.0003041,120]
[380074732,1755530487670,-1436.33,0.0003041,120]
[380074733,1755530487697,-400.0,0.0003041,120]
[380074734,1755530487725,-400.0,0.0003041,120]
[380074735,1755530487753,-153.955535,0.0003041,120]
[380074736,1755530487780,-400.0,0.0003041,120]
[380074737,1755530487808,-487.57,0.0003041,120]
[380074738,1755530487836,-400.0,0.0003041,120]
[380074739,1755530487865,-1413.48,0.0003041,120]
[380074740,1755530487893,-1328.1,0.0003041,120]
[380074741,1755530487920,-1927.68,0.0003041,120]
[380074742,1755530487948,-821.16,0.0003041,120]
[380074743,1755530487981,-964.14,0.0003041,120]
[380074744,1755530488011,-5751.47,0.0003041,120]
[380074745,1755530488041,-4245.43,0.0003041,120]
[380074746,1755530488072,-5341.15,0.0003041,120]
[380074747,1755530488102,-4425.15,0.0003041,120]
[380074748,1755530488132,-400.0,0.0003041,120]
[380074749,1755530488162,-400.0,0.0003041,120]
[380074750,1755530488190,-2921.22,0.0003041,120]
[380074751,1755530488220,-9514.07,0.0003041,120]
[380074752,1755530488249,-2934.81,0.0003041,120]
[380074753,1755530488281,-11159.02,0.0003041,120]
[380074754,1755530488310,-3444.98,0.0003041,120]
[380074755,1755530488339,-400.0,0.0003041,120]
[380074756,1755530488368,-4445.61,0.0003041,120]
[380074757,1755530488396,-1796.71,0.0003041,120]
[380074758,1755530488423,-400.0,0.0003041,120]
[380074759,1755530488451,-553.54,0.0003041,120]
[380074760,1755530488478,-811.86,0.0003041,120]
[380074761,1755530488506,-400.0,0.0003041,120]
[380074762,1755530488533,-400.0,0.0003041,120]
[380074763,1755530488560,-3859.56,0.0003041,120]
[380074764,1755530488588,-400.0,0.0003041,120]
[380074765,1755530488615,-400.0,0.0003041,120]
[380074766,1755530488641,-756.1,0.0003041,120]
[380074767,1755530488668,-537.54,0.0003041,120]
[380074768,1755530488695,-400.0,0.0003041,120]
[380074769,1755530488724,-3249.46375,0.0003041,120]
[380074770,1755530488753,-4597.67,0.0003041,120]
[380074771,1755530488784,-500.0,0.0003041,120]
[380074772,1755530488812,-3186.4,0.0003041,120]
[380074773,1755530488840,-9929.85,0.0003041,120]
[380074774,1755530488869,-400.0,0.0003041,120]
[380074775,1755530488896,-1580.65,0.0003041,120]
[380074776,1755530488925,-4350.68,0.0003041,120]
[380074777,1755530488952,-400.0,0.0003041,120]
[380074778,1755530488984,-1761.45,0.0003041,120]
[380074779,1755530489014,-695.9,0.0003041,120]
[380074780,1755530489045,-604.53,0.0003041,120]
[380074781,1755530489076,-1506.74,0.0003041,120]
[380074782,1755530489106,-400.0,0.0003041,120]
[380074783,1755530489139,-3688.46,0.0003041,120]
[380074784,1755530489169,-400.0,0.0003041,120]
[380074785,1755530489202,-400.0,0.0003041,120]
[380074786,1755530489238,-5310.49,0.0003041,120]
[380074787,1755530489269,-400.0,0.0003041,120]
[380074788,1755530489300,-5343.33,0.0003041,120]
[380074789,1755530489332,-4981.8,0.0003041,120]
[380074790,1755530489361,-1588.35,0.0003041,120]
[380074791,1755530489390,-400.0,0.0003041,120]
[380074792,1755530489418,-2193.41,0.0003041,120]
[380074793,1755530489446,-7191.17,0.0003041,120]
[380074794,1755530489476,-3281.61,0.0003041,120]
[380074795,1755530489508,-9539.7,0.0003041,120]
[380074796,1755530489537,-1087.67,0.0003041,120]
[380074797,1755530489565,-470.85,0.0003041,120]
[380074798,1755530489594,-735.78,0.0003041,120]
[380074799,1755530489622,-6232.64,0.0003041,120]
[380074800,1755530489650,-400.0,0.0003041,120]
[380074801,1755530489680,-2435.74,0.0003041,120]
[380074802,1755530489722,-400.0,0.0003041,120]
[380074803,1755530489812,-3610.88,0.0003041,120]
[380074804,1755530489842,-3362.18,0.0003041,120]
[380074805,1755530489872,-400.0,0.0003041,120]
[380074806,1755530489902,-2370.59,0.0003041,120]
[380074807,1755530489931,-3961.87,0.0003041,120]
[380074808,1755530489960,-452.13,0.0003041,120]
[380074809,1755530489993,-400.0,0.0003041,120]
[380074810,1755530490023,-916.09,0.0003041,120]
[380074811,1755530490053,-207.665874,0.0003041,120]
[380074812,1755530490083,-3122.65,0.0003041,120]
[380074813,1755530490380,-400.0,0.0003041,120]
[380074814,1755530490410,-400.0,0.0003041,120]
[380074815,1755530490439,-400.0,0.0003041,120]
[380074816,1755530490470,-400.0,0.0003041,120]
[380074817,1755530490498,-400.0,0.0003041,120]
[380074818,1755530490526,-400.0,0.0003041,120]
[380074819,1755530490558,-400.0,0.0003041,120]
[380074820,1755530490589,-749.31,0.0003041,120]
[380074821,1755530490619,-400.0,0.0003041,120]
[380074822,1755530490648,-2778.34,0.0003041,120]
[380074823,1755530490680,-2444.27,0.0003041,120]
[380074824,1755530490713,-2329.5,0.0003041,120]
[380074825,1755530490744,-2442.52,0.0003041,120]
[380074826,1755530490776,-2753.22,0.0003041,120]
[380074827,1755530490808,-400.0,0.0003041,120]
[380074828,1755530490838,-3462.25,0.0003041,120]
[380074829,1755530490867,-400.0,0.0003041,120]
[380074830,1755530490898,-3092.24,0.0003041,120]
[380074831,1755530490926,-400.0,0.0003041,120]
[380074832,1755530490955,-159.121679,0.0003041,120]
[380074833,1755530490989,-1733.16,0.0003041,120]
[380074834,1755530491018,-400.0,0.0003041,120]
[380074835,1755530491049,-400.0,0.0003041,120]
[380074836,1755530491079,-400.0,0.0003041,120]
[380074837,1755530491107,-400.0,0.0003041,90]
[380074838,1755530491138,-212.84735864,0.00030684,60]
[380074839,1755530491168,-500.0,0.00030684,60]
[380074840,1755530491198,-500.0,0.00030684,60]